fUST/lending_fUST_20240325
["ID","MTS","AMOUNT","RATE_DAILY","PERIOD"]
[320438156,1711374556249,-154.8915759,0.00042999,4]
[320438157,1711374556270,-359.0,0.00043,2]
[320438158,1711374556290,-32861.96468675,0.00043,120]
[320438159,1711374556311,-177.48301519,0.00044037,120]
[320438160,1711374556334,-23759.5401062,0.00044038,2]
[320438161,1711374558103,-960.36827237,0.00044038,2]
[320438172,1711374632537,-414.29612576,0.00043347,15]
[320438173,1711374632546,-155.0022488,0.00043937,11]
[320438180,1711374632679,-180.09162143,0.00044038,2]
[320438182,1711374632689,-191.79755644,0.00045616,2]
[320438184,1711374632698,-150.0,0.00047,60]
[320438186,1711374632707,-159.66412117,0.0004752,3]
[320438187,1711374632716,-897.30501272,0.00047899,120]
[320438188,1711374632724,-15615.8805027,0.00047899,120]
[320438189,1711374632733,-39453.1010248,0.000479,2]
[320438190,1711374632742,-2412.12687479,0.00047996,4]
[320438191,1711374632751,-303.29293991,0.00047997,4]
[320438192,1711374632760,-9968.01918784,0.00048,30]
[320438193,1711374632769,-156.0293502,0.00048,2]
[320438194,1711374632778,-1161.0,0.00048,120]
[320438195,1711374632787,-129.4471023,0.0004818,110]
[320438196,1711374632797,-500.0,0.0004818,4]
[320438197,1711374632805,-5590.06997312,0.00048393,61]
[320438198,1711374632817,-1613.89380386,0.00048393,61]
[320438541,1711374638226,-500.0,0.00048392,120]
[320438543,1711374638236,-500.0,0.00048392,120]
[320438545,1711374638245,-500.0,0.00048392,120]
[320438547,1711374638254,-500.0,0.00048392,120]
[320438549,1711374638263,-596.97349528,0.00048392,120]
[320438551,1711374638272,-18822.98776311,0.00048393,61]
[320438553,1711374638280,-151.0,0.00048393,7]
[320438555,1711374638289,-102429.03874161,0.00048393,2]
[320438971,1711374646829,-52677.81,0.00048393,2]
[320438991,1711374647003,-328.67,0.00048393,2]
[320442414,1711374856834,298.09599575,0.000235,2]
[320442415,1711374874514,1224.04505495,0.0002,2]
[320442417,1711375206288,180.29052338,0.00027018,10]
[320442428,1711375632168,-154.90705577,0.00039564,4]
[320442429,1711375632191,-158.80335249,0.00039565,7]
[320442430,1711375632211,-196.35977791,0.00043732,4]
[320442431,1711375632233,-10.95388406,0.00044,90]
[320442438,1711375745264,-199.58270767,0.00037465,2]
[320442439,1711375745286,-164.71833253,0.00041364,30]
[320442440,1711375745307,-199.58270767,0.00042465,2]
[320442441,1711375745328,-149.04611594,0.00044,90]
[320442514,1711375832431,-3633.34,0.00045,5]
[320442516,1711375832442,-231.64464,0.00045373,2]
[320442518,1711375832458,-2092.7723882,0.00045467,2]
[320442520,1711375832469,-250.0,0.00045859,2]
[320442522,1711375832479,-2207.06097037,0.00046292,4]
[320442524,1711375832489,-18005.28785629,0.00047,4]
[320442525,1711375832501,-153.0,0.00047123,2]
[320442537,1711375832656,-153.0,0.00047123,2]
[320442539,1711375832666,-153.0,0.00047123,2]
[320442541,1711375832676,-190.604604,0.00047187,2]
[320442543,1711375832686,-5232.61189672,0.000472,2]
[320442565,1711375832886,-941.99243626,0.000472,2]
[320442567,1711375832895,-199.58270767,0.00047465,2]
[320442569,1711375832905,-160.0,0.000475,120]
[320442571,1711375832914,-153.0,0.00047541,2]
[320442573,1711375832923,-159.1305271,0.00047671,2]
[320442575,1711375832932,-195.7523084,0.00047678,2]
[320442576,1711375832942,-159.66412117,0.00047909,3]
[320442578,1711375832951,-1422.89560842,0.00047909,2]
[320442579,1711375832960,-2000.0,0.00047945,120]
[320442581,1711375832969,-2000.0,0.00047945,120]
[320442583,1711375832978,-2000.0,0.00047945,120]
[320442585,1711375832988,-493.31225518,0.00047945,120]
[320442587,1711375832997,-5014.143831,0.00048,10]
[320442590,1711375833006,-43.56868479,0.00048,2]
[320442592,1711375833018,-511.725,0.00048,2]
[320442699,1711375838628,-500.0,0.00047999,120]
[320442700,1711375838638,-500.0,0.00047999,120]
[320442701,1711375838648,-500.0,0.00047999,120]
[320442702,1711375838659,-500.0,0.00047999,120]
[320442703,1711375838670,-500.0,0.00047999,120]
[320442704,1711375838680,-200.0,0.00047999,120]
[320442705,1711375838690,-9.93056629,0.00048,2]
[320442706,1711375838701,-1000.0,0.00048,120]
[320442707,1711375838710,-500.0,0.00048,30]
[320442708,1711375838720,-500.0,0.00048,30]
[320442709,1711375838730,-1000.0,0.00048,30]
[320442710,1711375838739,-1000.0,0.00048,30]
[320442711,1711375838748,-1000.0,0.00048,30]
[320442712,1711375838758,-1000.0,0.00048,30]
[320442713,1711375838767,-1000.0,0.00048,30]
[320442714,1711375838777,-1000.0,0.00048,30]
[320442715,1711375838786,-128.37288272,0.00048,30]
[320442716,1711375838800,-871.62711728,0.00048,30]
[320442717,1711375838809,-2000.0,0.00048,120]
[320442718,1711375838818,-5481.12331263,0.00048,15]
[320442900,1711375840642,-4010.87668737,0.00048,15]
[320442902,1711375840652,-1000.0,0.00048,90]
[320442904,1711375840662,-153.0,0.00048082,2]
[320442906,1711375840671,-153.0,0.00048082,2]
[320442908,1711375840680,-153.0,0.00048082,2]
[320442910,1711375840689,-153.0,0.00048082,2]
[320442912,1711375840698,-153.0,0.00048082,2]
[320442914,1711375840706,-153.0,0.00048082,2]
[320442916,1711375840716,-153.0,0.00048082,2]
[320442918,1711375840727,-153.0,0.00048082,2]
[320442920,1711375840737,-153.0,0.00048082,2]
[320442922,1711375840746,-153.0,0.00048219,2]
[320442924,1711375840755,-153.0,0.00048219,2]
[320442926,1711375840764,-153.0,0.00048219,2]
[320442928,1711375840773,-153.4128105,0.00048219,2]
[320442930,1711375840782,-401.3735572,0.00048219,2]
[320442932,1711375840793,-153.0,0.00048219,2]
[320442934,1711375840803,-153.0,0.00048219,2]
[320442936,1711375840812,-153.0,0.00048219,2]
[320442938,1711375840821,-153.0,0.00048219,2]
[320442940,1711375840830,-153.0,0.00048219,2]
[320442942,1711375840839,-153.0,0.00048219,2]
[320442944,1711375840848,-153.0,0.00048219,2]
[320442946,1711375840857,-153.0,0.00048219,2]
[320442948,1711375840866,-153.0,0.00048219,2]
[320442950,1711375840875,-153.0,0.00048219,2]
[320442952,1711375840884,-153.0,0.00048219,2]
[320442954,1711375840893,-400.0,0.000483,25]
[320442956,1711375840903,-5125.582243,0.0004848,30]
[320442958,1711375840912,-200.39591663,0.00048491,4]
[320442960,1711375840922,-1372.71305492,0.00048491,4]
[320442962,1711375840931,-606.64205457,0.00048491,4]
[320442964,1711375840940,-2082.77466787,0.00048491,7]
[320442966,1711375840950,-500.0,0.00048492,120]
[320442968,1711375840960,-279.09204859,0.00048492,120]
[320442970,1711375840969,-44652.35485409,0.00048493,61]
[320442972,1711375840979,-9215.94271165,0.00048493,2]
[320443213,1711375846575,-24009.00457527,0.00048493,2]
[320443215,1711375846600,-85068.00728505,0.00048493,2]
[320443217,1711375846609,-201.9518537,0.00048493,2]
[320443219,1711375846618,-309.76767193,0.0004859,4]
[320443221,1711375846627,-155.41585708,0.00048591,4]
[320443223,1711375846636,-400.0,0.00048591,2]
[320443224,1711375846646,-155.39017573,0.00048591,4]
[320443226,1711375846655,-154.92253873,0.00048591,4]
[320443228,1711375846664,-405.25188487,0.00048591,4]
[320443230,1711375846673,-1721.66047521,0.00048591,14]
[320443232,1711375846683,-1801.37350393,0.00048591,4]
[320443233,1711375846692,-275.51486902,0.00048591,4]
[320443235,1711375846702,-151.0,0.00048593,7]
[320443237,1711375846711,-318.43693779,0.00048593,4]
[320443239,1711375846720,-1321.45205393,0.00048593,4]
[320443240,1711375846729,-865.08136025,0.00048593,4]
[320443241,1711375846739,-229.6255876,0.00048593,4]
[320443243,1711375846750,-269.39073036,0.00048593,4]
[320443245,1711375846759,-240.25025926,0.00048593,4]
[320443246,1711375846768,-4233.07456015,0.00048593,4]
[320443247,1711375846777,-156.21887992,0.00048593,4]
[320443248,1711375846787,-155.04999768,0.00048593,4]
[320443250,1711375846798,-228.96029343,0.00048593,4]
[320443252,1711375846808,-811.17649621,0.00048593,4]
[320443254,1711375846817,-627.05574472,0.00048593,4]
[320443255,1711375846826,-469.11685855,0.00048593,4]
[320443258,1711375846836,-156.18476097,0.00048593,4]
[320443260,1711375846845,-69948.50251052,0.00048593,4]
[320443262,1711375846855,-2270.64780675,0.00048598,2]
[320443263,1711375846865,-12244.77783119,0.000486,30]
[320443266,1711375846875,-37899.19223738,0.000486,2]
[320443267,1711375846884,-151.0,0.000486,7]
[320443269,1711375846893,-151.0,0.000486,7]
[320443271,1711375846902,-151.0,0.000486,7]
[320443273,1711375846911,-285.128171,0.000486,7]
[320443275,1711375846920,-151.0,0.000486,7]
[320443277,1711375846929,-630.91203204,0.00048696,4]
[320443279,1711375846939,-6594.61,0.00048697,120]
[320443281,1711375846948,-1500.0,0.00048697,120]
[320443283,1711375846957,-63186.18130629,0.00048698,120]
[320443292,1711375849434,-159.66412118,0.00048105,3]
[320443293,1711375849443,-18969.06604282,0.00048698,120]
[320443297,1711375857320,495.53054614,0.00044,4]
[320443298,1711375857341,1208.00688616,0.00044,4]
[320443299,1711375857361,1141.87076941,0.00044,4]
[320443300,1711375937387,156.09094758,0.00037409,7]
[320443347,1711376838104,-391.4533431,0.00037033,4]
[320443348,1711376838125,-370.46028791,0.00037034,4]
[320443349,1711376838145,-1305.75377047,0.00037034,4]
[320443350,1711376848490,4692.29,0.000235,2]
[320443351,1711376884984,688.44756833,0.000235,2]
[320443352,1711376885023,5172.41504345,0.00023265,2]
[320443353,1711376889388,15987.48578878,0.000235,2]
[320443354,1711376889895,11731.83682267,0.000235,7]
[320443355,1711376892509,19065.22561245,0.000235,2]
[320443356,1711376894176,500.0,0.000235,2]
[320443357,1711376896434,872.50038807,0.000214,2]
[320443358,1711376898998,4868.0682142,0.00023265,2]
[320443359,1711376901472,14292.36580797,0.000235,2]
[320443360,1711376956154,-1413.925,0.00023493,2]
[320443361,1711376960113,-7342.9072164,0.00022678,2]
[320443362,1711376960134,-471.05027514,0.00023492,2]
[320443363,1711376960155,-2030.10544866,0.00023493,2]
[320443364,1711376960175,-780.33195473,0.00023494,2]
[320443365,1711376960195,-187.30483325,0.00023494,2]
[320443366,1711376960220,-617.73703242,0.00023494,2]
[320443367,1711376960240,-157.74893899,0.00023495,2]
[320443368,1711376960260,-309.86969342,0.00023495,2]
[320443369,1711376960280,-154.95351395,0.00023495,2]
[320443370,1711376960299,-1478.45909339,0.00023495,2]
[320443371,1711376960319,-160.87070723,0.00023496,2]
[320443372,1711376960339,-436.81265876,0.00023496,2]
[320443373,1711376960359,-205.27707627,0.00023496,2]
[320443374,1711376960380,-877.46470654,0.00023496,2]
[320443375,1711376960400,-1542.70751142,0.00023497,2]
[320443376,1711376960429,-414.08642532,0.00023497,2]
[320443377,1711376960448,-288.47550235,0.00023497,2]
[320443378,1711376960473,-180.22166268,0.00023497,2]
[320443379,1711376960494,-683.96804349,0.00023497,2]
[320443380,1711376960516,-1301.46396623,0.00023497,2]
[320443381,1711376960538,-864.38002108,0.00023498,2]
[320443382,1711376960558,-435.45196325,0.00023498,2]
[320443383,1711376960579,-698.70055767,0.00023499,2]
[320443384,1711376960601,-3509.19508101,0.00023499,2]
[320443385,1711376960622,-192.09614906,0.00023499,2]
[320443386,1711376960642,-1695.11998081,0.000235,2]
[320443387,1711376960661,-195.25152227,0.000235,2]
[320443388,1711376960681,-415.55300892,0.000235,2]
[320443389,1711376960701,-4643.8895633,0.000235,2]
[320443390,1711376965121,-816.54193756,0.00023491,2]
[320443391,1711376965146,-636.0720585,0.00023491,2]
[320443392,1711376965287,-1383.81107392,0.00023491,2]
[320443393,1711376965309,-187.78507347,0.00023491,2]
[320443394,1711376965331,-931.6812301,0.00023492,2]
[320443395,1711376965352,-12089.33701553,0.000235,2]
[320443396,1711376965373,-500.0,0.000235,2]
[320443397,1711376965394,-872.50038807,0.000264,2]
[320443398,1711376965414,-750.87855459,0.000274,2]
[320443399,1711376965436,-2000.0,0.0002775,2]
[320443400,1711376965456,-2000.0,0.00027806,2]
[320443401,1711376965481,-1650.32575684,0.00027863,2]
[320443402,1711376966139,-154.95351395,0.00023491,2]
[320443403,1711376966159,-1922.02642136,0.00023491,2]
[320443404,1711376966180,-349.67424316,0.00027863,2]
[320443405,1711376966199,-2000.0,0.00027919,2]
[320443406,1711376966221,-2000.0,0.00027976,2]
[320443407,1711376966241,-2000.0,0.00028032,2]
[320443408,1711376966260,-2000.0,0.00028089,2]
[320443409,1711376966281,-2000.0,0.00028145,2]
[320443410,1711376966302,-3809.50126,0.00028202,2]
[320443411,1711376966323,-3362.983825,0.00029034,2]
[320443412,1711376966343,-598.25926915,0.0003,2]
[320443413,1711376966363,-872.50038807,0.000314,2]
[320443414,1711376966383,-865.39980906,0.00034,4]
[320443415,1711376966402,-435.50473251,0.00034543,4]
[320443416,1711376966422,-934.0238999,0.00034544,2]
[320443417,1711376966441,-593.34015054,0.00035,2]
[320443418,1711376966459,-1822.42783438,0.00035,2]
[320443419,1711376966482,-690.89824419,0.00035178,4]
[320443420,1711376966501,-392.66644784,0.0003518,4]
[320443421,1711376966521,-304.78785734,0.00035903,4]
[320443422,1711376966540,-242.91785712,0.00035903,4]
[320443423,1711376966559,-154.95351395,0.00035903,4]
[320443424,1711376966578,-240.45169697,0.00035904,4]
[320443425,1711376966598,-155.22747424,0.00035904,4]
[320443426,1711376966617,-156.94605154,0.00035904,4]
[320443427,1711376966636,-155.79804823,0.00035904,4]
[320443428,1711376966654,-155.12606552,0.00035904,4]
[320443429,1711376966674,-155.24144602,0.00035904,2]
[320443430,1711376966693,-302.5150439,0.00035904,35]
[320443431,1711376966714,-322.61827325,0.00035904,4]
[320443432,1711376966733,-154.95351395,0.00035904,4]
[320443433,1711376966752,-243.18483766,0.00035904,4]
[320443434,1711376966771,-239.29822108,0.00035905,4]
[320443435,1711376966790,-154.98238752,0.00035905,4]
[320443436,1711376966809,-1622.34720789,0.00035905,2]
[320443437,1711376966829,-204.77269619,0.00035905,4]
[320443438,1711376966850,-155.1366588,0.00035905,4]
[320443439,1711376966868,-211.28132556,0.00035905,4]
[320443440,1711376966889,-32135.34842257,0.00035905,4]
[320443441,1711376966919,-31519.55973379,0.00035905,4]
[320443442,1711376966942,-500.0,0.00035906,15]
[320443443,1711376966964,-190.6826713,0.00035906,15]
[320443444,1711376966989,-587.23839615,0.00035906,15]
[320443445,1711376967011,-500.0,0.00035906,15]
[320443446,1711376967031,-500.0,0.00035906,15]
[320443447,1711376967052,-500.0,0.00035906,15]
[320443448,1711376967072,-500.0,0.00035906,15]
[320443449,1711376967093,-500.0,0.00035906,15]
[320443450,1711376967112,-500.0,0.00035906,15]
[320443451,1711376967132,-500.0,0.00035906,15]
[320443452,1711376967153,-500.0,0.00035906,15]
[320443453,1711376967175,-500.0,0.00035906,15]
[320443454,1711376967196,-500.0,0.00035906,15]
[320443455,1711376967218,-500.0,0.00035906,15]
[320443456,1711376967341,-500.0,0.00035906,15]
[320443457,1711376967362,-500.0,0.00035906,15]
[320443458,1711376967383,-500.0,0.00035906,15]
[320443459,1711376967404,-500.0,0.00035906,15]
[320443460,1711376967426,-500.0,0.00035906,15]
[320443461,1711376967447,-500.0,0.00035906,15]
[320443462,1711376967471,-500.0,0.00035906,15]
[320443463,1711376967492,-500.0,0.00035906,15]
[320443464,1711376967514,-500.0,0.00035906,15]
[320443465,1711376967536,-500.0,0.00035906,15]
[320443466,1711376967558,-500.0,0.00035906,15]
[320443467,1711376967580,-500.0,0.00035906,15]
[320443468,1711376967604,-500.0,0.00035906,15]
[320443469,1711376967627,-500.0,0.00035906,15]
[320443470,1711376967648,-394.12064689,0.00035906,15]
[320443471,1711376967669,-500.0,0.00035906,15]
[320443472,1711376967690,-500.0,0.00035906,15]
[320443473,1711376967710,-500.0,0.00035906,15]
[320443474,1711376967733,-500.0,0.00035906,15]
[320443475,1711376967753,-500.0,0.00035906,15]
[320443476,1711376967773,-500.0,0.00035906,15]
[320443477,1711376967797,-500.0,0.00035906,15]
[320443478,1711376967818,-500.0,0.00035906,15]
[320443479,1711376967841,-500.0,0.00035906,15]
[320443480,1711376967862,-500.0,0.00035906,15]
[320443481,1711376967883,-450.0,0.00035906,15]
[320443482,1711376967905,-500.0,0.00035906,15]
[320443483,1711376967926,-500.0,0.00035906,15]
[320443484,1711376967947,-500.0,0.00035906,15]
[320443485,1711376967970,-500.0,0.00035906,15]
[320443486,1711376967991,-500.0,0.00035906,15]
[320443487,1711376968011,-500.0,0.00035906,15]
[320443488,1711376968033,-500.0,0.00035906,15]
[320443489,1711376968053,-500.0,0.00035906,15]
[320443490,1711376968074,-500.0,0.00035906,15]
[320443491,1711376968094,-500.0,0.00035906,15]
[320443492,1711376968115,-500.0,0.00035906,15]
[320443493,1711376968136,-467.89797599,0.00035906,15]
[320443494,1711376968155,-500.0,0.00035906,15]
[320443495,1711376968175,-500.0,0.00035906,15]
[320443496,1711376968197,-500.0,0.00035906,15]
[320443497,1711376968219,-500.0,0.00035906,15]
[320443498,1711376968240,-500.0,0.00035906,15]
[320443499,1711376968260,-500.0,0.00035906,15]
[320443500,1711376968279,-192.31020586,0.00035907,4]
[320443501,1711376968299,-309.78315489,0.00035907,4]
[320443502,1711376968318,-154.9690062,0.00035908,4]
[320443503,1711376968337,-445.26833726,0.00035908,4]
[320443504,1711376968357,-5543.47254561,0.00035908,4]
[320443505,1711376968376,-1677.58055134,0.00035908,4]
[320443506,1711376968396,-500.0,0.00035908,15]
[320443507,1711376968415,-500.0,0.00035908,15]
[320443508,1711376968435,-189.22515448,0.00035908,15]
[320443509,1711376968455,-154.14705046,0.00035908,15]
[320443510,1711376968476,-500.0,0.00035908,15]
[320443511,1711376968496,-500.0,0.00035908,15]
[320443512,1711376968516,-289.57612105,0.00035908,15]
[320443513,1711376968535,-453.64655197,0.00035908,15]
[320443514,1711376968555,-7753.59219718,0.00035909,2]
[320443515,1711376968654,-154.95351395,0.00023491,2]
[320443516,1711376968673,-3181.0535575,0.00035903,4]
[320443517,1711376968694,-500.0,0.00035906,15]
[320443518,1711376968713,-500.0,0.00035906,15]
[320443519,1711376968735,-500.0,0.00035906,15]
[320443520,1711376968755,-500.0,0.00035906,15]
[320443521,1711376968775,-500.0,0.00035906,15]
[320443522,1711376968795,-6100.76692662,0.00035909,2]
[320443523,1711376973281,-2749.7413467,0.00023499,2]
[320443524,1711376973302,-5543.47254561,0.00026399,2]
[320443525,1711376973323,-632.88904529,0.00035905,4]
[320443526,1711376973343,-158.71315482,0.00035905,4]
[320443527,1711376973364,-1986.41336924,0.00035905,4]
[320443528,1711376973383,-212.40696514,0.00035905,4]
[320443529,1711376973407,-500.0,0.00035906,15]
[320443530,1711376973429,-500.0,0.00035906,15]
[320443531,1711376973449,-500.0,0.00035906,15]
[320443532,1711376973471,-616.85536339,0.00035906,15]
[320443533,1711376973491,-500.0,0.00035906,15]
[320443534,1711376973516,-500.0,0.00035906,15]
[320443535,1711376973536,-500.0,0.00035906,15]
[320443536,1711376973561,-500.0,0.00035906,15]
[320443537,1711376973582,-500.0,0.00035906,15]
[320443538,1711376973602,-500.0,0.00035906,15]
[320443539,1711376973622,-500.0,0.00035906,15]
[320443540,1711376973654,-500.0,0.00035906,15]
[320443541,1711376973683,-500.0,0.00035906,15]
[320443542,1711376973707,-500.0,0.00035906,15]
[320443543,1711376973734,-500.0,0.00035906,15]
[320443544,1711376973759,-500.0,0.00035906,15]
[320443545,1711376973782,-395.68057894,0.00035906,2]
[320443546,1711376973807,-10642.3135168,0.00035909,2]
[320443547,1711376973831,-223.39473264,0.00036,30]
[320443548,1711376973854,-5000.0,0.00036663,20]
[320443549,1711376973878,-316.84325451,0.00037032,4]
[320443550,1711376973902,-254.25167163,0.00037032,4]
[320443551,1711376973924,-222.5253948,0.00037032,4]
[320443552,1711376973946,-326.75648955,0.00037032,4]
[320443553,1711376973967,-2784.80351311,0.00037032,4]
[320443554,1711376973993,-750.05758138,0.00037032,4]
[320443555,1711376974015,-685.6041872,0.00037032,4]
[320443556,1711376974036,-362.42831446,0.00037032,4]
[320443557,1711376974057,-1684.39785796,0.00037032,4]
[320443558,1711376974078,-418.24123517,0.00037032,4]
[320443559,1711376974100,-214.6895479,0.00037407,4]
[320443560,1711376974121,-155.91816966,0.00037407,4]
[320443561,1711376974142,-302.0,0.00037408,3]
[320443562,1711376974163,-313.08414454,0.00037409,2]
[320443563,1711376974185,-260.61907514,0.00037409,2]
[320443564,1711376974206,-1687.17965354,0.00037409,30]
[320443565,1711376974228,-948.20740097,0.00038,4]
[320443566,1711376974249,-912.14696961,0.00039899,2]
[320443567,1711376974272,-16669.0,0.0004,7]
[320443568,1711376974294,-701.0,0.0004,120]
[320443569,1711376974317,-2644.93343496,0.0004,7]
[320443570,1711376974339,-155.09922285,0.0004,4]
[320443571,1711376974360,-1077.41320138,0.0004,2]
[320443572,1711376974383,-470.34421757,0.00041095,4]
[320443573,1711376974404,-500.0,0.00041096,31]
[320443574,1711376974428,-500.0,0.00041096,31]
[320443575,1711376974449,-500.0,0.00041096,31]
[320443576,1711376974472,-500.0,0.00041096,31]
[320443577,1711376974492,-500.0,0.00041096,31]
[320443578,1711376974513,-500.0,0.00041096,31]
[320443579,1711376974535,-500.0,0.00041096,31]
[320443580,1711376974556,-500.0,0.00041096,31]
[320443581,1711376974578,-500.0,0.00041096,31]
[320443582,1711376974602,-500.0,0.00041096,31]
[320443583,1711376974624,-500.0,0.00041096,31]
[320443584,1711376974647,-500.0,0.00041096,31]
[320443585,1711376974669,-500.0,0.00041096,31]
[320443586,1711376974690,-500.0,0.00041096,31]
[320443587,1711376974710,-500.0,0.00041096,31]
[320443588,1711376974733,-500.0,0.00041096,31]
[320443589,1711376974754,-500.0,0.00041096,31]
[320443590,1711376974775,-500.0,0.00041096,31]
[320443591,1711376974797,-393.5108302,0.00041096,31]
[320443592,1711376974818,-500.0,0.00041096,31]
[320443593,1711376974838,-500.0,0.00041096,31]
[320443594,1711376974861,-500.0,0.00041096,31]
[320443595,1711376974881,-500.0,0.00041096,31]
[320443596,1711376974902,-500.0,0.00041096,31]
[320443597,1711376974923,-500.0,0.00041096,31]
[320443598,1711376974946,-500.0,0.00041096,31]
[320443599,1711376974971,-500.0,0.00041096,31]
[320443600,1711376974992,-500.0,0.00041096,31]
[320443601,1711376975013,-500.0,0.00041096,31]
[320443602,1711376975034,-500.0,0.00041096,31]
[320443603,1711376975062,-500.0,0.00041096,31]
[320443604,1711376975085,-500.0,0.00041096,31]
[320443605,1711376975107,-500.0,0.00041096,31]
[320443606,1711376975129,-500.0,0.00041096,31]
[320443607,1711376975150,-500.0,0.00041096,31]
[320443608,1711376975172,-500.0,0.00041096,31]
[320443609,1711376975311,-500.0,0.00041096,31]
[320443610,1711376975337,-500.0,0.00041096,31]
[320443611,1711376975358,-500.0,0.00041096,31]
[320443612,1711376975379,-500.0,0.00041096,31]
[320443613,1711376975400,-500.0,0.00041096,31]
[320443614,1711376975421,-500.0,0.00041096,31]
[320443615,1711376975441,-500.0,0.00041096,31]
[320443616,1711376975462,-500.0,0.00041096,31]
[320443617,1711376975484,-500.0,0.00041096,31]
[320443618,1711376975504,-500.0,0.00041096,31]
[320443619,1711376975525,-500.0,0.00041096,31]
[320443620,1711376975546,-500.0,0.00041096,31]
[320443621,1711376975566,-500.0,0.00041096,31]
[320443622,1711376975587,-500.0,0.00041096,31]
[320443623,1711376975608,-500.0,0.00041096,31]
[320443624,1711376975629,-500.0,0.00041096,31]
[320443625,1711376975649,-488.40605466,0.00041096,31]
[320443626,1711376975670,-500.0,0.00041096,31]
[320443627,1711376975691,-500.0,0.00041096,31]
[320443628,1711376975711,-500.0,0.00041096,31]
[320443629,1711376975734,-500.0,0.00041096,31]
[320443630,1711376975754,-500.0,0.00041096,31]
[320443631,1711376975775,-500.0,0.00041096,31]
[320443632,1711376975798,-500.0,0.00041096,31]
[320443633,1711376975819,-500.0,0.00041096,31]
[320443634,1711376975840,-500.0,0.00041096,31]
[320443635,1711376975863,-500.0,0.00041096,31]
[320443636,1711376975883,-500.0,0.00041096,31]
[320443637,1711376975904,-1024.1437333,0.00041096,31]
[320443638,1711376975925,-1024.1437333,0.00041096,31]
[320443639,1711376975947,-1024.1437333,0.00041096,31]
[320443640,1711376975967,-1024.1437333,0.00041096,31]
[320443641,1711376975990,-1024.1437333,0.00041096,31]
[320443642,1711376976013,-1024.1437333,0.00041096,31]
[320443643,1711376976035,-1024.1437333,0.00041096,31]
[320443644,1711376976057,-1024.1437333,0.00041096,31]
[320443645,1711376976349,-1024.1437333,0.00041096,31]
[320443646,1711376976373,-368.05324906,0.00041096,31]
[320443647,1711376976395,-500.0,0.00041096,31]
[320443648,1711376976421,-2166.36720397,0.00041096,31]
[320443649,1711376976444,-2166.36720397,0.00041096,31]
[320443650,1711376976466,-2166.36720397,0.00041096,31]
[320443651,1711376976490,-2166.36720397,0.00041096,31]
[320443652,1711376976511,-7570.53896477,0.000415,30]
[320443653,1711376976536,-161164.16495055,0.00042,30]
[320443892,1711377034616,-154.95351395,0.00023499,2]
[320443894,1711377034626,-383.2790668,0.000235,2]
[320443896,1711377034636,-643.1613722,0.00025367,2]
[320443898,1711377034646,-432.49985091,0.00026635,2]
[320443903,1711377034691,-188.6582177,0.00026635,2]
[320443905,1711377034701,-517.69515303,0.000274,2]
[320443916,1711377034809,-171.12214903,0.00033162,2]
[320444262,1711377038947,-759.7455163,0.00033078,2]
[320444264,1711377038966,-157.40760411,0.00033162,2]
[320444265,1711377038987,-51.47024686,0.00033162,2]
[320444266,1711377039000,-598.883705,0.00034855,2]
[320444268,1711377039015,-5153.77830255,0.0003555,2]
[320444270,1711377039034,-400.0,0.00035903,3]
[320444273,1711377039051,-1279.5885354,0.00035904,4]
[320444274,1711377039066,-376.20256037,0.00035904,2]
[320444275,1711377039078,-4206.8922361,0.00035904,4]
[320444276,1711377039093,-245.85220772,0.00035904,4]
[320444277,1711377039106,-787.54385946,0.00035904,4]
[320444278,1711377039120,-248.07796472,0.00035904,4]